bitfinex/quotes_ETHUSD_20260226
["timestamp","ask_amount","ask_price","bid_price","bid_amount"]
[1772086651589,1.67166197,2075.3,2075.1,0.001]
[1772086652025,0.46701686,2075.2,2075.1,0.001]
[1772086652520,0.002,2075.5,2075.1,0.75431428]
[1772086652736,0.002,2075.5,2075.2,0.46065037]
[1772086653023,1.20653262,2075.5,2075.2,0.46065037]
[1772086653217,0.002,2075.5,2075.2,0.46065037]
[1772086653586,0.002,2075.5,2075.3,0.75230469]
[1772086654002,0.002,2075.5,2075.3,0.45964078]
[1772086662256,0.002,2075.7,2075.4,0.45964078]
[1772086662819,0.002,2075.7,2075.4,0.46064078]
[1772086663252,0.002,2075.5,2075.4,0.46064078]
[1772086664828,0.48326352,2075.5,2075.4,0.001]
[1772086665446,0.48326352,2075.5,2075.1,0.001]
[1772086666056,0.002,2075.5,2075.2,0.45964078]
[1772086666226,0.48326352,2076.7,2075.5,0.45964078]
[1772086666552,1.20606151,2076.4,2075.5,0.45964078]
[1772086666845,0.002,2076.4,2075.7,0.45964078]
[1772086667049,0.002,2076.7,2076.3,0.45964078]
[1772086667249,1.20590534,2076.6,2075.9,0.45964078]
[1772086667544,1.20589484,2076.6,2075.9,0.46064077]
[1772086667745,0.002,2076.6,2075.9,0.46064077]
[1772086668651,1.2059073,2076.6,2075.9,0.46064077]
[1772086670351,0.002,2076.6,2076.0,0.45964078]
[1772086671049,0.002,2076.6,2075.8,7.49297794]
[1772086671050,0.48326352,2076.6,2076.1,0.46064077]
[1772086671248,0.48326352,2076.6,2076.1,0.45964078]
[1772086671447,0.48326352,2076.6,2076.1,0.46064077]
[1772086671626,0.48326352,2076.6,2076.1,0.00099999]
[1772086672437,1.20394895,2076.5,2076.1,0.46064077]
[1772086673232,0.48126352,2076.4,2075.9,0.45964078]
[1772086673757,0.48126352,2076.4,2075.5,0.45964078]
[1772086674165,0.48126352,2076.2,2075.5,0.45964078]
[1772086674339,0.48126352,2076.2,2075.4,1.209]
[1772086674340,0.48126352,2076.2,2075.3,0.45964078]
[1772086674652,0.48126352,2076.0,2075.3,0.45964078]
[1772086675346,0.48126352,2076.0,2075.1,0.46064078]
[1772086675546,0.48126352,2076.0,2075.1,0.001]
[1772086676527,0.48126352,2076.0,2075.9,0.001]
[1772086676725,0.49473093,2075.9,2075.1,0.46005975]
[1772086676924,0.49473093,2075.9,2075.6,0.001]
[1772086677130,0.49473093,2075.9,2075.1,0.46005975]
[1772086679333,1.69908587,2075.8,2075.1,0.46005975]
[1772086680754,1.69908587,2075.8,2075.2,0.45905975]
[1772086681953,0.49473093,2075.7,2075.1,0.001]
[1772086682257,0.49473093,2075.7,2075.0,0.001]
[1772086682450,0.49473093,2075.7,2075.0,0.46005975]
[1772086684050,0.49473093,2075.5,2075.0,0.46005975]
[1772086686162,1.20458706,2075.4,2075.0,0.46005975]
[1772086688452,1.20458706,2075.4,2075.2,0.001]
[1772086688853,0.002,2075.3,2075.2,0.001]
[1772086689961,0.49673093,2075.3,2075.0,0.001]
[1772086690265,0.49473093,2075.2,2074.2,0.33578152]
[1772086690466,0.49473093,2074.9,2074.2,0.001]
[1772086690765,1.20481927,2075.0,2074.2,0.001]
[1772086690766,0.49473093,2074.7,2074.2,0.001]
[1772086691258,0.49473093,2074.7,2074.0,0.001]
[1772086693075,0.49473093,2074.7,2074.0,0.33578152]
[1772086693076,1.20502989,2074.7,2074.0,0.33578152]
[1772086693862,1.69971779,2074.8,2074.0,0.33578152]
[1772086694072,1.69958456,2075.0,2074.0,0.33578152]
[1772086694967,1.69958456,2075.0,2074.1,1.20534207]
[1772086695138,1.69958456,2075.0,2074.2,0.33478152]
[1772086695647,1.69958456,2075.0,2074.0,0.33578152]
[1772086695648,0.49473093,2074.9,2074.0,0.33578152]
[1772086696362,0.49473093,2074.8,2074.0,0.001]
[1772086696577,0.49473093,2074.8,2073.7,0.001]
[1772086696578,0.49473093,2074.5,2073.7,0.001]
[1772086696744,0.49473093,2074.3,2073.7,0.001]
[1772086697246,0.49473093,2074.1,2073.7,0.001]
[1772086698388,0.49473093,2074.1,2073.2,4.19587291]
[1772086698541,0.49473093,2074.1,2073.2,2.99002047]
[1772086699269,0.49473093,2074.1,2073.1,1.9869225]
[1772086699270,0.49473093,2073.9,2073.1,0.781]
[1772086699448,0.49473093,2073.9,2072.7,1.20612792]
[1772086699449,0.49473093,2073.8,2072.8,0.33578152]
[1772086699644,0.49473093,2073.7,2072.6,1.2]
[1772086699846,0.49473093,2073.7,2072.5,0.33578152]
[1772086700274,0.49473093,2073.7,2072.3,0.33578152]
[1772086700275,0.49473093,2073.4,2072.3,0.33578152]
[1772086700475,0.49473093,2073.3,2072.3,0.33578152]
[1772086700970,0.49473093,2073.3,2072.2,1.20643557]
[1772086701174,0.49473093,2073.1,2072.0,1.54230741]
[1772086701468,1.70071259,2073.0,2072.5,0.001]
[1772086701848,0.49473093,2072.9,2072.5,0.001]
[1772086703562,0.49473093,2072.7,2071.7,1.54348362]
[1772086703953,0.49473093,2072.6,2071.6,0.33678152]
[1772086704456,0.49473093,2072.4,2071.3,2.74274801]
[1772086704654,0.49473093,2072.4,2071.3,2.74274289]
[1772086704655,0.49473093,2072.3,2071.3,2.74274289]
[1772086704857,1.543,2072.4,2071.5,0.33678152]
[1772086705167,0.49473093,2072.3,2071.3,2.74274289]
[1772086705379,0.49473093,2072.9,2071.9,0.33678152]
[1772086705545,0.49473093,2072.8,2072.1,0.33678152]
[1772086706966,0.49473093,2072.8,2071.9,2.73636923]
[1772086707172,0.49473093,2072.8,2071.9,2.73639153]
[1772086707975,1.65894651,2072.7,2071.9,2.73639153]
[1772086708178,0.45279029,2072.6,2071.9,2.73639153]
[1772086708878,1.65893103,2072.8,2072.0,0.33678152]
[1772086709280,0.45279029,2072.7,2072.0,0.33678152]
[1772086710081,1.20621441,2072.6,2072.0,0.33678152]
[1772086710280,1.20621441,2072.6,2072.0,1.54333989]
[1772086711078,1.65898768,2072.7,2072.0,1.54333989]
[1772086711278,4.82439212,2073.0,2072.1,0.33678152]
[1772086711279,0.45279029,2073.0,2072.1,0.33678152]
[1772086711782,2.69669922,2073.2,2072.3,0.33678152]
[1772086711981,2.69669922,2073.2,2072.5,0.33678152]
[1772086712167,0.45279029,2073.1,2072.5,0.33678152]
[1772086712682,0.45279029,2073.3,2072.5,0.33678152]
[1772086712870,1.65860922,2073.3,2072.5,0.33678152]
[1772086713259,0.45279029,2073.3,2072.5,0.33678152]
[1772086713471,1.65850972,2073.5,2072.5,0.33678152]
[1772086713783,0.45279029,2073.5,2072.5,0.33678152]
[1772086714080,0.45279029,2073.5,2072.7,0.33678152]
[1772086714250,1.65848878,2073.5,2072.7,0.33678152]
[1772086714456,0.49852559,2073.4,2072.7,0.33678152]
[1772086714854,0.49852559,2073.4,2072.4,0.33678152]
[1772086715059,0.49852559,2073.4,2072.4,1.54309136]
[1772086715565,0.49852559,2073.4,2072.4,0.33678152]
[1772086715766,0.49852559,2073.3,2072.4,1.54311073]
[1772086716173,0.49852559,2073.1,2072.4,1.54311073]
[1772086716481,0.49852559,2073.1,2072.5,0.33678152]
[1772086716689,1.20585211,2073.3,2072.5,0.33678152]
[1772086716690,0.49852559,2073.3,2072.5,0.33678152]
[1772086718602,0.49852559,2073.3,2072.7,0.33678152]
[1772086718763,1.70426039,2073.5,2072.7,0.33678152]
[1772086719567,1.70423146,2073.5,2072.7,0.33678152]
[1772086720084,0.49852559,2073.4,2072.7,0.33678152]
[1772086720991,1.20570587,2073.5,2072.7,0.33678152]
[1772086720992,1.7041917,2073.6,2072.9,0.33678152]
[1772086721291,0.49852559,2073.6,2072.9,0.33678152]
[1772086721467,1.7041637,2073.6,2072.9,0.33678152]
[1772086721669,0.49852559,2073.5,2072.7,1.54289296]
[1772086721875,0.49852559,2073.5,2072.5,1.53378152]
[1772086722061,0.49852559,2073.0,2072.2,0.001]
[1772086722406,0.49852559,2073.0,2072.0,2.40353826]
[1772086722407,0.49852559,2072.7,2072.0,0.001]
[1772086722879,0.49852559,2072.5,2072.0,0.001]
[1772086723197,1.70469713,2072.7,2072.0,0.001]
[1772086723500,1.70468426,2072.7,2072.0,0.001]
[1772086723665,0.49852559,2072.6,2072.0,0.001]
[1772086724888,1.70475769,2072.6,2072.0,0.001]
[1772086725073,0.49852559,2072.5,2072.0,0.001]
[1772086726870,0.49852559,2072.5,2072.2,0.001]
[1772086727660,1.70479972,2072.5,2072.2,0.001]
[1772086727859,0.49852559,2072.5,2072.2,0.001]
[1772086729300,0.49852559,2072.4,2072.2,0.001]
[1772086730202,0.49852559,2072.4,2072.0,0.001]
[1772086730203,1.70486347,2072.4,2072.0,0.001]
[1772086730695,0.49852559,2072.3,2072.0,0.001]
[1772086731284,1.70494562,2072.3,2072.0,0.001]
[1772086731590,0.49852559,2072.3,2072.0,0.001]
[1772086731784,1.70482459,2072.5,2072.0,0.001]
[1772086731975,1.70472061,2072.7,2072.0,0.33978152]
[1772086732387,0.49852559,2072.7,2072.0,0.33978152]
[1772086732782,1.70468539,2072.7,2072.0,0.33978152]
[1772086732969,0.49852559,2072.6,2072.0,0.33978152]
[1772086734272,0.49852559,2072.6,2072.1,1.20650547]
[1772086734478,1.70474989,2072.6,2072.0,1.20753168]
[1772086734682,0.49852559,2072.5,2072.0,1.20753168]
[1772086735611,0.49852559,2072.5,2072.0,1.31777569]
[1772086736098,1.20618404,2072.7,2072.1,0.33878152]
[1772086736297,0.45130962,2072.8,2072.1,1.54524532]
[1772086737804,4.82346676,2073.2,2072.2,0.33878152]
[1772086737805,0.45130962,2073.1,2072.2,0.33878152]
[1772086738386,0.45130962,2072.9,2072.3,1.20638903]
[1772086738586,0.45130962,2072.9,2071.7,1.54647695]
[1772086738587,0.45130962,2072.7,2071.7,1.54647695]
[1772086738802,0.45130962,2072.7,2071.7,0.001]
[1772086738987,0.45130962,2072.7,2071.7,1.20773731]
[1772086738988,0.002,2072.6,2071.7,1.20773731]
[1772086739186,0.45130962,2072.5,2071.7,1.20773731]
[1772086739386,0.45130962,2072.5,2072.0,0.001]
[1772086741204,1.65764044,2072.4,2072.0,0.001]
[1772086741404,0.45130962,2072.4,2072.0,0.001]
[1772086743690,0.45130962,2072.3,2072.0,0.001]
[1772086744512,0.45130962,2072.4,2072.0,0.001]
[1772086745306,0.45130962,2072.4,2071.8,0.33178152]
[1772086746019,0.45130962,2072.4,2071.9,1.53840346]
[1772086746517,0.45130962,2072.4,2071.9,0.33178152]
[1772086748022,1.65764544,2072.4,2071.9,0.33178152]
[1772086748183,0.45130962,2072.4,2071.9,1.53840168]
[1772086748919,0.002,2072.6,2071.9,1.53840168]
[1772086748920,0.45330962,2072.6,2072.0,0.33178152]
[1772086749821,0.45330962,2072.6,2072.3,1.80122295]
[1772086749822,0.002,2072.6,2072.3,1.80122295]
[1772086749985,0.002,2072.6,2072.4,1.20633082]
[1772086750185,0.002,2072.8,2072.4,1.53811234]
[1772086750696,0.002,2072.8,2072.2,1.53818602]
[1772086751299,0.45330962,2072.8,2072.2,1.53818602]
[1772086752308,0.002,2072.4,2072.2,1.53818602]
[1772086752513,0.002,2072.4,2072.1,0.001]
[1772086754026,0.45330962,2072.7,2072.1,0.33278152]
[1772086754234,0.45330962,2072.7,2072.1,1.53928423]
[1772086755198,0.45330962,2072.7,2072.1,0.001]
[1772086756109,0.45130962,2072.5,2072.1,0.001]
[1772086757987,0.45330962,2072.7,2072.2,0.33178152]
[1772086758197,0.002,2072.7,2072.2,0.33178152]
[1772086759531,0.002,2073.1,2072.5,0.32978152]
[1772086760041,0.002,2073.1,2072.6,1.20621441]
[1772086760735,0.45330962,2073.1,2072.5,0.32978152]
[1772086761042,0.45330962,2073.1,2072.3,1.195]
[1772086762110,1.20598166,2073.0,2072.3,1.195]
[1772086762407,0.45130962,2072.9,2072.3,1.195]
[1772086763402,0.45130962,2072.9,2072.2,1.20644716]
[1772086763911,0.45130962,2072.9,2072.1,1.53724331]
[1772086764608,0.45130962,2072.7,2072.2,0.001]
[1772086765018,0.45330962,2072.7,2072.2,0.001]
[1772086767012,1.65948078,2072.7,2072.2,0.001]
[1772086767937,0.45330962,2072.7,2072.2,0.001]
[1772086768737,0.002,2072.7,2072.2,0.33078152]
[1772086769441,0.002,2072.7,2072.3,1.20638903]
[1772086769642,0.002,2072.7,2072.3,1.53617055]
[1772086770324,0.002,2072.7,2072.4,0.32978152]
[1772086771631,0.002,2072.7,2072.5,0.32978152]
[1772086771832,0.002,2072.9,2072.5,0.32978152]
[1772086773513,0.002,2072.9,2072.5,1.53604208]
[1772086775543,0.002,2072.9,2072.6,0.32778152]
[1772086776425,0.002,2072.9,2072.4,6.62252288]
[1772086776935,0.002,2072.9,2072.5,0.32778152]
[1772086777345,0.002,2073.1,2072.7,0.32778152]
[1772086777539,0.002,2073.1,2072.8,0.32778152]
[1772086777740,0.002,2073.1,2072.9,1.20603984]
[1772086777920,0.002,2073.1,2073.0,0.32778152]
[1772086778439,0.002,2073.1,2072.8,1.53385275]
[1772086778647,0.002,2072.9,2072.8,1.53385275]
[1772086778815,0.002,2073.1,2072.9,0.32778152]
[1772086779021,0.002,2073.2,2072.9,0.32778152]
[1772086780717,0.002,2073.2,2073.0,1.53176318]
[1772086785679,0.002,2073.2,2073.0,2.74176318]
[1772086790463,0.002,2073.2,2073.1,0.32578152]
[1772086791856,0.002,2073.5,2073.1,0.32578152]
[1772086793366,0.49308419,2073.5,2073.2,1.20586532]
[1772086794362,0.49308419,2073.5,2073.1,0.32578152]
[1772086794662,0.49308419,2073.5,2073.0,2.84595673]
[1772086796136,0.48325959,2073.4,2073.0,1.21]
[1772086796645,0.48325959,2073.4,2073.0,2.41597708]
[1772086797864,0.48325959,2073.4,2072.8,0.43001125]
[1772086798184,0.48325959,2073.4,2072.7,1.221]
[1772086798185,0.48325959,2073.2,2072.7,1.221]
[1772086798538,0.48325959,2073.2,2072.7,0.001]
[1772086798748,4.8230008,2073.4,2072.8,0.43001125]
[1772086798749,0.48325959,2073.4,2072.8,0.43001125]
[1772086800276,0.48325959,2073.4,2073.0,0.43001125]
[1772086800772,0.002,2073.5,2073.1,0.43001125]
[1772086801774,0.002,2073.5,2073.2,0.001]
[1772086801951,0.002,2073.5,2073.2,0.43101125]
[1772086802348,0.002,2073.7,2073.3,0.43001125]
[1772086802559,0.002,2073.4,2073.3,0.43001125]
[1772086802753,0.002,2073.7,2073.3,0.43001125]
[1772086803441,0.48525959,2073.7,2073.2,0.001]
[1772086806394,0.48325959,2073.5,2073.2,0.001]
[1772086808056,0.48325959,2073.5,2073.0,0.001]
[1772086808485,0.48325959,2073.4,2073.0,0.001]
[1772086809785,0.48325959,2073.3,2073.0,0.001]
[1772086810886,0.48325959,2073.5,2073.0,0.43201125]
[1772086811091,0.48325959,2073.5,2073.0,0.001]
[1772086813202,0.002,2073.7,2073.0,0.43201125]
[1772086813393,0.002,2073.8,2073.4,0.42901125]
[1772086813565,0.002,2073.9,2073.4,0.42901125]
[1772086814298,0.002,2073.5,2073.4,0.42901125]
[1772086814468,0.002,2073.7,2073.4,0.42901125]
[1772086814806,0.002,2073.9,2073.7,0.42901125]
[1772086814972,0.002,2074.0,2073.7,0.42901125]
[1772086815285,0.002,2074.0,2073.7,1.63454554]
[1772086815465,0.002,2074.0,2073.7,1.20553429]
[1772086815868,0.002,2074.2,2073.8,0.42901125]
[1772086816963,0.48525959,2074.2,2073.3,1.63476247]
[1772086817165,0.48525959,2074.2,2073.5,1.20569086]
[1772086817392,0.48525959,2074.2,2073.5,1.63470211]
[1772086817599,0.48525959,2074.2,2073.6,0.42901125]
[1772086817600,0.002,2074.2,2073.6,0.42901125]
[1772086818868,0.48525959,2074.2,2073.6,0.42901125]
[1772086819285,0.48525959,2074.2,2073.7,1.20557457]
[1772086819464,0.48525959,2074.2,2073.7,1.63458582]
[1772086820080,0.002,2074.2,2073.7,1.63458582]
[1772086822496,0.48525959,2074.2,2073.6,1.20559568]
[1772086822799,0.48525959,2074.2,2073.6,1.63460693]
[1772086824382,0.48525959,2074.2,2073.6,0.42901125]
[1772086824586,0.48325959,2074.1,2073.6,0.42901125]
[1772086825499,0.48325959,2074.1,2073.6,1.20563199]
[1772086826201,0.48325959,2074.1,2073.5,1.22]
[1772086826503,0.48325959,2074.1,2073.2,2.86186501]
[1772086826504,0.46329463,2073.9,2073.2,2.86186501]
[1772086826884,0.46329463,2073.9,2073.8,0.001]
[1772086827180,0.46329463,2073.9,2073.2,2.86186501]
[1772086827399,0.46329463,2073.9,2073.5,0.001]
[1772086829583,0.46329463,2073.8,2073.5,0.001]
[1772086831788,1.66881976,2073.8,2073.5,0.001]
[1772086831990,0.46329463,2073.8,2073.5,0.001]
[1772086832714,0.46329463,2073.7,2073.5,0.001]
[1772086837590,0.46329463,2073.7,2073.3,0.001]
[1772086838601,0.48937549,2073.6,2073.3,0.001]
[1772086839004,0.48937549,2073.4,2073.3,0.001]
[1772086840304,1.2076789,2073.6,2073.3,0.001]
[1772086840502,0.48937549,2073.5,2073.3,0.001]
[1772086841795,0.48937549,2073.4,2073.3,0.001]
[1772086842305,0.48937549,2073.4,2073.0,0.001]
[1772086843207,0.48937549,2073.4,2073.0,1.63698424]
[1772086843401,0.48937549,2073.4,2073.0,0.43101125]
[1772086843797,0.48937549,2073.4,2073.0,1.63698406]
[1772086843997,0.48937549,2073.4,2073.1,0.43001125]
[1772086844523,0.48937549,2073.4,2073.0,0.001]
[1772086846690,1.69704799,2073.6,2073.0,0.43101125]
[1772086846896,0.49137549,2073.6,2073.0,0.43101125]
[1772086847194,0.48937549,2073.5,2073.0,0.43101125]
[1772086848928,0.48937549,2073.4,2073.0,0.001]
[1772086851526,0.46677756,2073.3,2073.0,0.001]
[1772086852429,0.46677756,2073.3,2073.2,0.001]
[1772086853522,1.67258472,2073.3,2073.2,0.001]
[1772086853912,0.46677756,2073.3,2073.2,0.001]
[1772086854511,0.002,2073.4,2073.2,0.43101125]
[1772086855730,0.002,2073.4,2073.2,1.63687561]
[1772086855905,0.002,2073.4,2073.2,0.43101125]
[1772086857026,0.002,2073.4,2073.2,1.63686671]
[1772086857234,0.002,2073.6,2073.4,0.42801125]
[1772086857624,0.002,2073.8,2073.5,0.42801125]
[1772086858314,0.002,2073.8,2073.4,1.20574901]
[1772086858526,0.49698511,2073.8,2073.3,1.20576937]
[1772086858837,0.002,2073.8,2073.4,0.42801125]
[1772086860533,0.002,2073.8,2073.4,1.63374232]
[1772086860916,0.49698511,2073.8,2073.2,1.227]
[1772086863259,0.49498511,2073.6,2073.2,1.227]
[1772086864145,0.49498511,2073.6,2073.2,2.86087095]
[1772086864346,0.49498511,2073.6,2073.2,1.65501125]
[1772086864760,0.49498511,2073.6,2073.2,2.86087486]
[1772086865160,0.49698511,2073.8,2073.3,1.20577922]
[1772086865461,0.49698511,2073.8,2073.4,0.42801125]
[1772086866259,0.002,2073.6,2073.4,0.42801125]
[1772086866643,0.002,2073.8,2073.4,0.42801125]
[1772086867465,0.49698511,2073.8,2073.3,1.63179417]
[1772086867776,0.49698511,2073.8,2073.2,1.227]
[1772086868069,0.49698511,2073.8,2073.2,0.001]
[1772086869252,0.49498511,2073.6,2073.2,0.001]
[1772086869564,1.20756037,2073.8,2073.2,0.42701125]
[1772086870156,0.49498511,2073.7,2073.0,1.20693758]
[1772086870369,0.49498511,2073.3,2072.5,6.03092672]
[1772086870670,0.49498511,2073.0,2072.2,1.6334512]
[1772086870857,0.49498511,2073.0,2072.3,6.03092672]
[1772086871255,0.49498511,2072.8,2072.3,6.03092672]
[1772086871941,1.4997975,2072.9,2072.2,0.001]
[1772086871942,0.49498511,2072.4,2072.2,0.001]
[1772086872137,0.49498511,2072.4,2072.2,6.03192672]
[1772086873065,0.49498511,2072.4,2072.1,0.001]
[1772086873287,1.70137318,2072.4,2072.1,0.001]
[1772086874843,0.49498511,2072.9,2072.1,0.001]
[1772086875797,0.49498511,2072.7,2072.1,0.42701125]
[1772086877968,1.70116652,2072.7,2072.2,0.42601125]
[1772086878171,1.70116652,2072.7,2072.3,0.001]
[1772086878351,1.70114193,2072.7,2072.3,0.001]
[1772086879570,6.32467898,2073.2,2072.3,0.42701125]
[1772086879571,0.49498511,2073.1,2072.3,0.42701125]
[1772086880278,0.49498511,2072.9,2072.3,1.63339132]
[1772086880572,0.49498511,2072.9,2072.4,0.42601125]
[1772086882369,1.70106396,2072.9,2072.4,0.42601125]
[1772086882568,0.49498511,2073.3,2072.6,0.42601125]
[1772086882774,1.70079628,2073.3,2072.6,0.42601125]
[1772086882959,0.49498511,2073.2,2072.6,0.42601125]
[1772086884479,1.7009086,2073.1,2072.6,0.42601125]
[1772086885372,1.20592349,2073.1,2072.6,0.42601125]
[1772086885583,0.49498511,2073.0,2072.6,0.42601125]
[1772086886782,0.4513454,2073.3,2072.7,0.42601125]
[1772086888649,0.4513454,2073.3,2072.6,1.20621292]
[1772086888856,1.20586532,2073.2,2072.6,1.20621292]
[1772086889052,0.4513454,2073.1,2072.6,1.20621292]
[1772086889878,0.4513454,2073.1,2072.5,1.63223919]
[1772086890854,0.4533454,2073.1,2072.5,1.63223919]
[1772086891070,0.4533454,2073.1,2072.5,1.20622794]
[1772086891277,0.4533454,2073.1,2072.6,0.42601125]
[1772086892182,0.4513454,2073.0,2072.6,0.42601125]
[1772086892986,0.4513454,2072.8,2072.4,1.65701125]
[1772086893186,0.4513454,2072.8,2071.9,0.42701125]
[1772086893488,0.4513454,2072.8,2071.9,1.63357682]
[1772086895287,2.70304411,2072.9,2072.1,0.42701125]
[1772086895482,0.48117307,2072.8,2072.1,0.42701125]
[1772086896674,1.68715995,2073.0,2072.3,0.42601125]
[1772086896864,0.48117307,2073.0,2072.3,0.42601125]
[1772086897068,0.48117307,2073.0,2072.5,0.42601125]
[1772086897266,1.68715944,2073.0,2072.5,0.42601125]
[1772086898159,0.002,2073.1,2072.5,0.42601125]
[1772086898364,1.68911315,2073.1,2072.5,0.42601125]
[1772086900380,0.48317307,2073.1,2072.7,0.42601125]
[1772086901302,1.68910013,2073.1,2072.7,0.42601125]
[1772086902095,0.48117307,2073.0,2072.5,0.42601125]
[1772086902995,0.48117307,2073.0,2072.5,1.6322619]
[1772086903179,0.002,2072.9,2072.6,0.42601125]
[1772086907200,0.48317307,2072.9,2072.6,0.42601125]
[1772086909875,0.48117307,2072.8,2072.4,0.42601125]
[1772086910081,0.48117307,2072.8,2072.3,0.001]
[1772086910701,1.20615622,2072.7,2072.3,0.001]
[1772086910901,0.48117307,2072.6,2072.3,0.001]
[1772086913021,1.68743377,2072.6,2072.3,0.001]
[1772086914007,0.48117307,2072.5,2072.1,0.001]
[1772086915110,1.20633082,2072.4,2072.3,0.001]
[1772086915412,0.48117307,2072.3,2072.1,0.001]
[1772086917213,1.68882433,2072.5,2072.1,0.42701125]
[1772086917923,0.48252105,2072.4,2072.1,0.42701125]
[1772086919395,1.68875427,2072.6,2072.1,0.42701125]
[1772086919718,0.48252105,2072.5,2072.1,0.42701125]
[1772086922010,0.48252105,2072.4,2072.1,0.42701125]
[1772086922194,0.48252105,2072.4,2072.1,0.001]
[1772086922697,0.48252105,2072.2,2071.9,0.001]
[1772086926015,0.48252105,2072.1,2071.9,0.001]
[1772086927104,1.20630646,2072.5,2071.9,0.42801125]
[1772086927305,0.48252105,2072.4,2072.1,0.001]
[1772086927927,0.002,2072.2,2072.1,0.001]
[1772086932828,0.48452105,2072.2,2072.1,0.001]
[1772086934628,0.002,2072.2,2072.1,0.001]
[1772086935318,0.48452105,2072.2,2071.9,0.001]
[1772086937702,0.48252105,2072.1,2071.9,0.001]
[1772086939909,1.68903949,2072.1,2071.9,0.001]
[1772086940110,0.48252105,2072.1,2071.9,0.001]
[1772086941330,0.002,2072.0,2071.9,0.001]
[1772086945038,0.002,2072.0,2071.9,0.42801125]
[1772086945340,0.002,2072.2,2072.0,0.42501125]
[1772086946013,0.002,2072.2,2072.1,0.42501125]
[1772086949340,0.002,2072.2,2072.0,0.42501125]
[1772086950620,0.002,2072.2,2071.9,0.001]
[1772086950621,0.47848534,2072.2,2071.9,0.001]
[1772086950815,0.44073596,2072.1,2071.6,0.001]
[1772086951137,0.47648534,2072.0,2071.6,0.001]
[1772086951439,0.47648534,2072.0,2071.6,0.42701125]
[1772086953345,0.47648534,2072.0,2071.8,0.001]
[1772086953718,0.002,2071.9,2071.8,0.001]
[1772086954017,0.46707793,2071.8,2071.5,0.001]
[1772086954633,1.20673842,2071.7,2071.5,0.001]
[1772086954960,1.67381635,2071.7,2071.5,0.001]
[1772086955261,1.67381635,2071.7,2071.3,0.001]
[1772086955262,0.46707793,2071.5,2071.3,0.001]
[1772086955855,0.46707793,2071.5,2071.1,0.31078152]
[1772086957056,1.67397283,2071.5,2071.1,0.31078152]
[1772086958252,0.46707793,2071.4,2071.1,0.31078152]
[1772086959660,4.82699254,2071.7,2071.2,0.31078152]
[1772086959661,0.46707793,2071.7,2071.2,0.31078152]
[1772086965061,0.46707793,2071.7,2071.2,1.20702405]
[1772086965236,0.46707793,2071.7,2071.3,0.31078152]
[1772086966465,0.46707793,2071.6,2071.3,0.31078152]
[1772086968154,0.46707793,2071.6,2071.5,0.001]
[1772086968355,0.46907793,2071.6,2071.5,0.001]
[1772086971381,0.002,2071.6,2071.5,0.001]
[1772086972080,0.002,2071.6,2071.3,0.31078152]
[1772086972247,0.46907793,2071.6,2071.3,0.31078152]
[1772086972443,0.46907793,2071.6,2070.9,1.51796485]
[1772086972776,0.46907793,2071.6,2071.0,0.31078152]
[1772086973771,0.002,2071.6,2071.0,0.31078152]
[1772086973983,0.46907793,2071.6,2071.0,0.31078152]
[1772086974453,0.46907793,2071.6,2071.1,1.20708802]
[1772086974657,0.46707793,2071.5,2071.2,0.31078152]
[1772086975848,0.002,2071.6,2071.2,0.31078152]
[1772086976045,0.002,2071.6,2071.3,0.31078152]
[1772086976270,0.002,2071.8,2071.4,0.44073596]
[1772086976475,0.002,2071.8,2071.5,0.31078152]
[1772086978772,0.002,2071.8,2071.6,0.31078152]
[1772086981075,0.002,2071.9,2071.6,0.31078152]
[1772086981076,0.002,2071.9,2071.7,0.31078152]
[1772086981680,0.002,2072.1,2071.7,0.31078152]
[1772086982379,0.002,2072.1,2071.7,0.31178152]
[1772086983080,0.002,2071.8,2071.7,0.001]
[1772086983286,0.48794908,2071.8,2071.7,0.001]
[1772086983466,0.002,2071.8,2071.7,0.001]
[1772086985994,0.48794908,2071.8,2071.7,0.001]
[1772086986285,0.48794908,2071.8,2071.5,0.001]
[1772086986661,0.48794908,2071.8,2071.5,0.31178152]
[1772086988285,0.48594908,2071.7,2071.5,0.001]
[1772086994191,0.002,2071.8,2071.7,0.31078152]
[1772086994386,0.002,2072.1,2071.8,0.31078152]
[1772086996396,0.002,2072.1,2071.9,0.31078152]
[1772086998798,0.002,2072.1,2071.9,1.5173909]
[1772086999977,0.002,2072.1,2072.0,0.31078152]
[1772087003300,0.002,2072.1,2071.8,1.54778152]
[1772087003467,0.002,2072.1,2071.8,2.75445893]
[1772087003985,0.002,2072.1,2071.9,0.31078152]
[1772087005091,0.48794908,2072.4,2072.0,0.49313039]
[1772087005289,0.002,2072.4,2072.0,0.49313039]
[1772087005701,0.002,2072.5,2072.2,0.49313039]
[1772087006580,0.49425167,2072.5,2072.1,1.241]
[1772087006798,4.8262165,2072.9,2072.1,1.241]
[1772087006799,0.002,2072.9,2072.1,1.241]
[1772087007104,0.002,2074.0,2072.8,1.46948104]
[1772087007303,0.22076607,2074.3,2073.5,1.12380326]
[1772087007479,0.22076607,2074.3,2073.2,1.46948104]
[1772087007480,0.22076607,2074.3,2073.6,0.4966672]
[1772087007804,0.22276607,2074.5,2073.6,0.4966672]
[1772087008002,0.22076607,2074.4,2073.6,0.4966672]
[1772087008888,0.001,2073.7,2073.6,0.4966672]
[1772087010597,0.001,2073.7,2073.2,0.4966672]
[1772087010932,0.22176607,2073.7,2073.0,0.4966672]
[1772087011275,1.42639878,2073.6,2073.0,0.4966672]
[1772087011480,0.22076607,2073.5,2073.0,0.4966672]
[1772087012090,0.22076607,2073.5,2073.0,1.70264548]
[1772087012712,0.22076607,2073.5,2073.0,0.4966672]
[1772087013204,0.22076607,2073.5,2072.8,6.07137052]
[1772087013205,0.22076607,2073.3,2072.8,1.7436672]
[1772087013600,0.22076607,2073.3,2072.8,1.247]
[1772087014177,0.22076607,2073.3,2072.6,1.70285128]
[1772087014400,0.22076607,2073.3,2072.6,0.4966672]
[1772087014582,0.22076607,2073.3,2072.5,0.45410452]
[1772087015278,1.69024711,2072.8,2072.1,0.45410452]
[1772087015477,0.22076607,2072.7,2072.1,0.45410452]
[1772087017384,1.20621441,2072.6,2072.1,0.45410452]
[1772087017787,1.42698048,2072.6,2072.0,0.0011]